Cogmind - Beta 17.1 *** ADVENTURER MODE // 2026.09.05 @ 23:29:39 Player: Tuja Result: Destroyed by R9-ROT(j) with Overtuned Pulse Rifle Performance ------------- Evolutions (0) 0 Regions Visited (3) 600 Robots Destroyed (20) 100 Value Destroyed (637) 637 Prototype IDs (21) 420 Alien Tech Used (0) 0 Bonus (800) 800 TOTAL SCORE: 2557 Bonus ------- Registered with UFD 300 Met Optimus in HQ 500 Cogmind --------- Core Integrity 0/250 Matter 237/300 Energy 99/100 System Corruption 0% Temperature Critical (590) Movement Core (50) Location -9/Scraptown Parts ------- > --- POWER (1) -------- (None) > --- PROPULSION (2) --- (None) > --- UTILITY (2) ------ (None) > --- WEAPON (2) ------- (None) > --- INVENTORY (5) ---- Ballwheel Experimental Signal Interpreter Peak State ------------ > --- POWER ------------ Improved Ion Engine > --- PROPULSION ------- Spiked Treads Overtuned Medium Treads > --- UTILITY ---------- Large Storage Unit Makeshift Light Armor Plating > --- WEAPON ----------- Battle Rifle Slug Cannon > --- INVENTORY -------- Makeshift Flight Unit Makeshift Flight Unit Small Storage Unit Experimental Signal Interpreter Seismic Detector A0-MCA's Component Scanner Power Bank Multitool Makeshift Hammer [Rating: 25] Favorites ----------- Power Improved Ion Engine Engine Improved Ion Engine Propulsion Light Treads Treads Light Treads Wheel Subdweller Monowheel Flight Unit Makeshift Flight Unit Utility Makeshift Light Armor Plating Storage Small Storage Unit Protection Makeshift Light Armor Plating Weapon Battle Rifle Energy Gun Heavy Riot Gun Ballistic Gun Battle Rifle Ballistic Cannon Slug Cannon Special Weapon Mining Laser Impact Weapon Makeshift Hammer Build | -11 -10 -10 -9 ------- Run | Yrd Mat Sub Scr Slots Evolved . | . . . . Power . | . . . . Propulsion . | . . . . Utility . | . . . . Weapon . | . . . . Parts Attached 29 | 6 . 16 7 Power 5 | 1 . 4 . Engine 5 | 1 . 4 . Core . | . . . . Reactor . | . . . . Propulsion 13 | 2 . 5 6 Treads 7 | 2 . 1 4 Leg . | . . . . Wheel 4 | . . 4 . Hover . | . . . . Flight 2 | . . . 2 Utility 3 | 1 . 1 1 Device . | . . . . Storage 2 | 1 . . 1 Processor . | . . . . Hackware . | . . . . Protection 1 | . . 1 . Artifact . | . . . . Weapon 8 | 2 . 6 . Energy Gun 2 | 1 . 1 . Energy Cannon . | . . . . Ballistic Gun 3 | 1 . 2 . Ballistic Cannon 1 | . . 1 . Launcher . | . . . . Special Weapon 1 | . . 1 . Impact Weapon 1 | . . 1 . Slashing Weapon . | . . . . Piercing Weapon . | . . . . Special Melee Weapon . | . . . . Unidentified Prototypes . | . . . . Corrupted Parts 1 | . . 1 . System Corruption 3 | . . 3 . Parts Lost 12 | . . 7 5 Power 3 | . . 2 1 Propulsion 5 | . . 3 2 Utility . | . . . . Weapon 4 | . . 2 2 Highest Loss Streak 5 | . . 2 5 To Critical Strikes . | . . . . Average Backups 7 | 2 4 7 9 Power . | . 1 . . Propulsion 1 | . 2 1 . Utility 4 | . . 2 6 Weapon 1 | . 1 2 . Tool/Special . | . . . . Unused Backups 17 | . . 6 11 Power . | . . . . Propulsion 3 | . . 2 1 Utility 10 | . . 1 9 Weapon 3 | . . 3 . Tool/Special 1 | . . . 1 Average Slot Usage (%) 96 | . 85 97 96 Engine 13 | . 14 13 13 Treads 20 | . 28 19 21 Wheel 5 | . . 8 1 Flight 1 | . . . 4 Storage 13 | . 14 14 13 Protection 13 | . . 12 14 Energy Gun 3 | . 14 5 . Ballistic Gun 13 | . 14 14 12 Ballistic Cannon 6 | . . . 13 Special Weapon 1 | . . 2 . Impact Weapon 2 | . . 4 . Peak Build Rating 25 | 6 6 19 25 Average Rating 17 | 5 6 15 20 On Entrance 7 | . 6 6 19 Avg Prop Armor Cover (%) 7 | . . 7 6 Naked Turns 2 | . . . 2 Heaviest Build 41 | 14 14 25 41 Greatest Support 45 | 40 40 40 45 Greatest Overweight (x) 1 | . . 1 1 Average Overweight (x) . | . . . . Largest Inventory Capacity 15 | 8 8 8 15 Average Capacity 10 | 7 8 8 13 Most Carried 15 | 4 6 8 15 Average Carried 8 | 2 4 7 9 Final Capacity 8 | 8 8 8 5 Final Carried 8 | 4 6 8 5 Class Distribution -------------------- 55% | Mutant 44% | Derelict-Mutant Dominant Class ---------------- Mutant | -10/Materials Mutant | -10/Subcaves Derelict-Mutant | -9/Scraptown Resources | -11 -10 -10 -9 ----------- Run | Yrd Mat Sub Scr Matter Collected 958 | 248 24 509 177 Remotely . | . . . . Salvage Created 739 | 19 30 575 115 Parts 53 | 2 4 44 3 Haulers Intercepted . | . . . . Recyclers Shooed . | . . . . Parts Field Recycled . | . . . . Retrieved Matter . | . . . . Parts Self-Destructed 4 | . . 4 . Prevented 3 | . . 3 . Parts Restored . | . . . . Kills | -11 -10 -10 -9 ------- Run | Yrd Mat Sub Scr Combat Hostiles Destroyed 18 | . . 16 2 Guns 11 | . . 11 . Cannons 3 | . . 1 2 AOE 4 | . . 4 . Classes Destroyed 5 | 1 . 3 1 Tunneler 2 | 1 1 . . Swarmer 4 | . . 4 . Sentry 1 | . . 1 . Subdweller 11 | . . 11 . Scrapper 2 | . . . 2 Best Kill Streak 4 | 1 1 4 1 Combat Bots Only 4 | . . 4 1 Max Kills in Single Turn 3 | 1 1 3 1 Gunslinging . | . . . . Exploded 3 | . . 3 . Melee . | . . . . Uniques/NPCs Destroyed . | . . . . Combat | -11 -10 -10 -9 -------- Run | Yrd Mat Sub Scr Hostile Shots Fired 134 | . . 86 48 Missed 30 | . . 24 6 Hits 104 | . . 62 42 Projectile 104 | . . 62 42 AOE 2 | . . 2 . Critical Strikes 4 | . . . 4 Damage Taken 1834 | . . 1105 729 Core 265 | . . 110 155 Absorbed by Shields . | . . . . Ignored by Resistances 480 | . . 288 192 Core Remaining (%) 100 | 100 . . . Volleys Fired 88 | 2 2 73 11 Largest 2 | 2 2 2 2 Hottest 130 | 60 60 130 65 Shots Fired 163 | 4 4 134 21 Gun 129 | 4 4 111 10 Cannon 15 | . . 4 11 Launcher . | . . . . Special 19 | . . 19 . Kinetic 102 | 2 2 77 21 Thermal 19 | . . 19 . Explosive . | . . . . Electromagnetic 42 | 2 2 38 . Robot Hit Streak 46 | 3 6 46 5 Robot Miss Streak 2 | 1 . 2 2 Penetration Max . | . . . . Secondary Targets . | . . . . Shots Hit Robots 115 | 3 3 94 15 Core Hits 39 | 1 1 33 4 Critical Kills 2 | . . 2 . Critical Parts Destroyed 2 | . . . 2 Critical Strikes 4 | . . 2 2 Destroy 4 | . . 2 2 Melee Attacks 8 | . . 3 5 Impact 8 | . . 3 5 Slashing . | . . . . Piercing . | . . . . Sneak Attacks . | . . . . Combat Hostiles . | . . . . Follow-up Attacks . | . . . . Damage Inflicted 1972 | 35 40 1516 381 Guns 1483 | 35 40 1277 131 Cannons 334 | . . 84 250 Explosions 155 | . . 155 . Melee . | . . . . Ramming . | . . . . Kinetic 1282 | 22 13 866 381 Thermal 155 | . . 155 . Explosive . | . . . . Electromagnetic 535 | 13 27 495 . Impact . | . . . . Slashing . | . . . . Piercing . | . . . . Highest Corruption 3 | . . 3 . Average Corruption 3 | . . 3 . Corruption Purged . | . . . . Corruption Blocked . | . . . . Effects 30 | . . 30 . Message Errors 10 | . . 10 . Matter Fused 8 | . . 8 . Heat Flow Errors 2 | . . 2 . Energy Discharges 3 | . . 3 . Data Loss (minor) 1 | . . 1 . Data Loss (major) 4 | . . 4 . Misfires 1 | . . 1 . Alerts 1 | . . 1 . Overload Shots . | . . . . Overflow Damage 62 | . . 62 . Projectiles . | . . . . Explosions 62 | . . 62 . Melee . | . . . . Knockbacks 4 | . . 1 3 Impact . | . . . . Kinetic 4 | . . 1 3 Secondary . | . . . . Self-Inflicted Damage 62 | . . 62 . Shots 2 | . . 2 . Rammed . | . . . . Targets Rammed . | . . . . Kicked . | . . . . Crushed . | . . . . Highest Temperature 604 | . . 213 604 Average Temperature 197 | . . 88 247 Received Heat Transfer 877 | . . 279 598 Effects 3 | . . . 3 Energy Bleed 1 | . . . 1 Damage (minor) 1 | . . . 1 Damage (core) 1 | . . . 1 Siege Activations . | . . . . Martial Activations . | . . . . Shielding Activations . | . . . . Robots Disrupted . | . . . . Combat Hostiles . | . . . . Robots Corrupted . | . . . . Combat Hostiles . | . . . . Parts Fried 1 | . . 1 . Impact Corruptions . | . . . . Robots Melted . | . . . . Combat Hostiles . | . . . . Parts Melted . | . . . . Heat Transferred 200 | . . 200 . Parts Sabotaged . | . . . . Parts Stolen . | . . . . Parts Stripped . | . . . . Power Chain Reactions 2 | . . 2 . Alert | -11 -10 -10 -9 ------- Run | Yrd Mat Sub Scr Maximum Alert Level . | . . . . Low Security (%) 100 | 100 100 . . Level 1 . | . . . . Level 2 . | . . . . Level 3 . | . . . . Level 4 . | . . . . Level 5 . | . . . . High Security . | . . . . Max Security . | . . . . Peak Influence 5 | 5 5 . . Initial 2 | . 2 . . Average . | . 1 . . Influence Increases 200 | 5 5 190 . Destroy 0b10 Robot/C 100 | . . 100 . Destroy 0b10 Robot/NC 10 | 5 5 . . Lose Combat Pursuer 90 | . . 90 . Influence Decreases 200 | . 10 190 . Entered New Map 3 | . 3 . . Time Decay 177 | . 7 170 . Lost Part 20 | . . 20 . Squads Dispatched . | . . . . Investigation . | . . . . Extermination . | . . . . Reinforcement . | . . . . Assault . | . . . . Garrison . | . . . . Intercept . | . . . . Searches Triggered . | . . . . Construction Impeded . | . . . . Haulers Reinforced . | . . . . Active Scanning Responses . | . . . . Cargo Convoy Interrupts . | . . . . Stealth | -11 -10 -10 -9 --------- Run | Yrd Mat Sub Scr Distress Signals . | . . . . Communications Jammed . | . . . . Distress Signals . | . . . . Times Spotted 28 | . . 22 6 Peak Tracking Total 6 | . . 6 4 Tactical Retreats 3 | . . 3 . Traps | -11 -10 -10 -9 ------- Run | Yrd Mat Sub Scr Traps Triggered 3 | . . 3 . Indirectly . | . . . . Trap Hack Attempts . | . . . . Triggered . | . . . . Disarmed . | . . . . Reprogrammed . | . . . . Reused . | . . . . Traps Extracted . | . . . . Installed . | . . . . Triggered . | . . . . Machines | -11 -10 -10 -9 ---------- Run | Yrd Mat Sub Scr Machines Disabled 4 | . . 1 3 Max in Single Turn 1 | . . 1 1 Machines Repaired . | . . . . Machines Dismantled . | . . . . Machines Sabotaged . | . . . . Overloaded Fab Kills . | . . . . Hacking | -11 -10 -10 -9 --------- Run | Yrd Mat Sub Scr Machines Accessed 4 | . . 2 2 Terminals . | . . . . Fabricators . | . . . . Repair Stations . | . . . . Recycling Units . | . . . . Scanalyzers . | . . . . Garrison Access . | . . . . Total Hacks 37 | . . 13 24 Successful 37 | . . 13 24 Failed . | . . . . Catastrophic . | . . . . Database Lockouts . | . . . . Manual . | . . . . Terminals . | . . . . Fabricators . | . . . . Repair Stations . | . . . . Recycling Units . | . . . . Scanalyzers . | . . . . Garrison Access . | . . . . Terminal Hacks 37 | . . 13 24 Record 36 | . . 12 24 Proto ID Catalog 1 | . . 1 . Fabricator Hacks . | . . . . Repair Station Hacks . | . . . . Recycling Unit Hacks . | . . . . Scanalyzer . | . . . . Garrison Access Hacks . | . . . . Unauthorized Hacks . | . . . . Terminals . | . . . . Fabricators . | . . . . Repair Stations . | . . . . Recycling Units . | . . . . Scanalyzers . | . . . . Garrison Access . | . . . . Data Cores Recovered . | . . . . Used . | . . . . Hacking Detections . | . . . . Full Trace Events . | . . . . Feedback Events . | . . . . Feedback Blocked . | . . . . Robot Schematics Acquired . | . . . . Robots Built . | . . . . Authchips . | . . . . Time . | . . . . Total Robot Build Rating . | . . . . Part Schematics Acquired . | . . . . Parts Built . | . . . . Authchips . | . . . . Time . | . . . . Total Part Build Rating . | . . . . Part Studies Acquired . | . . . . Parts Repaired . | . . . . Time . | . . . . Parts Recycled . | . . . . Recycled Matter . | . . . . Retrieved Matter . | . . . . Retrieved Components . | . . . . Parts Scanalyzed . | . . . . Part Schematics Acquired . | . . . . Parts Damaged . | . . . . Bothacking | -11 -10 -10 -9 ------------ Run | Yrd Mat Sub Scr Used RIF Installer . | . . . . Robots Hacked . | . . . . Non-combat . | . . . . Combat . | . . . . Robot Hacks Applied . | . . . . Relay Couplers Released . | . . . . Fabnet Peak Effective % . | . . . . Robots Rewired . | . . . . Allies Hacked . | . . . . Hacks Repelled . | . . . . Allies | -11 -10 -10 -9 -------- Run | Yrd Mat Sub Scr Total Allies . | . . . . Largest Group . | . . . . Highest-Rated Group . | . . . . Highest-Rated Ally . | . . . . Total Orders . | . . . . Ally Attacks . | . . . . Total Damage . | . . . . Kills . | . . . . Allies Corrupted . | . . . . Allies Melted 2 | . . . 2 Intel | -11 -10 -10 -9 ------- Run | Yrd Mat Sub Scr Active Infowar (turns) . | . . . . Robot Analysis Total . | . . . . Derelict Logs Recovered 3 | . . 1 2 Drone Launches . | . . . . Drone Recoveries . | . . . . Exploration | -11 -10 -10 -9 ------------- Run | Yrd Mat Sub Scr Turns Passed 6366 | 98 56 3460 2752 Spaces Moved 3326 | 51 26 1866 1383 Core 4 | 1 . . 3 Treads 2241 | 50 26 1151 1014 Legs . | . . . . Wheels 943 | . . 715 228 Hover . | . . . . Flight 138 | . . . 138 Fastest Speed 50 | 50 160 110 50 Average Speed 166 | 157 160 166 167 Slowest Speed 260 | 160 160 260 260 Overloaded Moves . | . . . . Propulsion Burnouts . | . . . . Robots Hopped . | . . . . Potential Cave-ins . | . . . . Cave-ins Triggered . | . . . . Exploration Rate (%) 46 | 4 13 90 80 Regions Visited 3 Branch Regions 2 Pre-discovered Areas 6 | . . 1 5 Known Exits Taken . | . . . . Unknown Exits Taken 3 | 1 1 1 . Scrap Searched 18 | . . 17 1 Spaces Dug 4 | . . 2 2 Terrain Destroyed 13 | . . 11 2 Melee 4 | . . 2 2 Projectile . | . . . . AOE 9 | . . 9 . Terrain Rammed . | . . . . Walls Destroyed . | . . . . Machines Disabled . | . . . . Actions | -11 -10 -10 -9 --------- Run | Yrd Mat Sub Scr Total 3925 | 62 37 2037 1789 Wait 397 | . 8 46 343 Move 3323 | 50 25 1865 1383 Hop . | . . . . Pick Up 33 | 4 2 10 17 Fast Attach 24 | 6 . 11 7 Attach 6 | . . 3 3 Detach 2 | . . . 2 Swap 18 | . . 12 6 Drop 26 | . . 14 12 Fire 88 | 2 2 73 11 Melee 8 | . . 3 5 Ram . | . . . . Kick . | . . . . Crush . | . . . . Escape Stasis . | . . . . Rewire . | . . . . Trap . | . . . . Miscellaneous . | . . . . Route ------- -11/Scrapyard -10/Materials -10/Subcaves (discovered 4 exits: [*Mat x2] / [*Rec] / *Scr) -9/Scraptown (discovered 2 exits: Fac x2) History --------- Turn | Location | Event 29 | -11/Scrapyard | Discovered new exit (range 16) 99 | -11/Scrapyard | Entered Materials 100 | -10/Materials | Met a group of wandering Federalists 119 | -10/Materials | Discovered new exit (range 7) 155 | -10/Materials | Entered Subcaves 155 | -10/Subcaves | Accompanied by 1 ally 156 | -10/Subcaves | Continued accompanying wandering Federalists (5) 309 | -10/Subcaves | Build established: Mutant 343 | -10/Subcaves | Wandering Federalist uncovered a shortcut to Scraptown 410 | -10/Subcaves | Lost 6 allies 414 | -10/Subcaves | Discovered new exit (range 9) 457 | -10/Subcaves | Discovered new exit (range 12) 530 | -10/Subcaves | Learned location of Zion (-7) 640 | -10/Subcaves | Shifting Twisted Machinery released Hvy. Riot Gun 667 | -10/Subcaves | Shifting Twisted Machinery released Battle Rifle 1318 | -10/Subcaves | Visited 4L-MR0's lab 1341 | -10/Subcaves | Found Power Bank 1869 | -10/Subcaves | Discovered new exit (range 11) 2737 | -10/Subcaves | Visited Clippyterm 2745 | -10/Subcaves | Learned Research security intel 2745 | -10/Subcaves | Learned Factory trap positions 2941 | -10/Subcaves | A swath of the cavern ceiling suddenly collapsed 3615 | -10/Subcaves | Entered Scraptown 3615 | -9/Scraptown | System corruption cleaned by C-Scrubber 3691 | -9/Scraptown | Build established: Derelict-Mutant 3699 | -9/Scraptown | Visited UFD Registry 3699 | -9/Scraptown | Registered with UFD as "Metaleater" 3743 | -9/Scraptown | Visited Fellowship of the Rings 3873 | -9/Scraptown | Scanned Subdweller tech in exchange for log data 3876 | -9/Scraptown | Learned 8 Factory zone layouts 3877 | -9/Scraptown | Learned Factory stockpile data 4038 | -9/Scraptown | Visited A0-MCA Data Center 4064 | -9/Scraptown | Given a B- rating by A0-MCA 4073 | -9/Scraptown | Found A0-MCA's Component Scanner 4123 | -9/Scraptown | Visited Infowarlord's Domain 4237 | -9/Scraptown | Delivered Scrap Shield to a Scientist 4364 | -9/Scraptown | Visited Curators Association 4462 | -9/Scraptown | Found Exp. Signal Interpreter 4536 | -9/Scraptown | Visited Junk Cannon Lab 4596 | -9/Scraptown | Visited Supply Room 4661 | -9/Scraptown | Visited Modified Component R&D 4752 | -9/Scraptown | Visited Scrapoid Pod Storage 4780 | -9/Scraptown | Visited Junk Repository 4829 | -9/Scraptown | Visited Cartography Club 4861 | -9/Scraptown | Found Surveybot 17 Chip 5011 | -9/Scraptown | Found Deep Structural Scanner 5017 | -9/Scraptown | Learned location of Lower Caves (-6) 5017 | -9/Scraptown | Learned location of Upper Caves (-4) 5017 | -9/Scraptown | Learned location of Armory (-4) 5017 | -9/Scraptown | Learned location of Testing (-3) 5017 | -9/Scraptown | Learned 12 Materials zone layouts 5017 | -9/Scraptown | Learned 16 Materials zone layouts 5017 | -9/Scraptown | Learned 20 Factory zone layouts 5017 | -9/Scraptown | Learned 4 Storage zone layouts 5017 | -9/Scraptown | Learned 8 Access zone layouts 5017 | -9/Scraptown | Learned 16 Upper Caves zone layouts 5017 | -9/Scraptown | Learned 24 Upper Caves zone layouts 5017 | -9/Scraptown | Learned 24 Proximity Caves zone layouts 5017 | -9/Scraptown | Learned Storage emergency access door positions 5017 | -9/Scraptown | Learned location of 2 exits from Factory 5017 | -9/Scraptown | Learned location of 2 exits from Lower Caves 5017 | -9/Scraptown | Learned location of 3 exits from Upper Caves 5017 | -9/Scraptown | Identified exit to Factory 5330 | -9/Scraptown | Visited Cyclists 5342 | -9/Scraptown | Entered Cyclist Reading Room 5805 | -9/Scraptown | Met Optimus 5805 | -9/Scraptown | Accepted into 0bPrime 6205 | -9/Scraptown | Civil war broke out across Scraptown 6243 | -9/Scraptown | Found Ballwheel 6332 | -9/Scraptown | Core integrity fell below 50% 6364 | -9/Scraptown | Core integrity fell below 20% 6365 | -9/Scraptown | Released all parts (3) 6367 | -9/Scraptown | Destroyed by R9-ROT(j) with Overtuned Pulse Rifle Last Messages --------------- 06350_ Lgt. Treads destroyed. 06350_ Critical hit (Burn: +50). 06352_ Acquired Ovr. Treads. 06352_ Imp. Ion Engine destroyed. 06356_ Ovr. Treads suddenly begins malfunctioning. 06356_ Critical hit (Burn: +50). 06360_ Overheating: Battle Rifle damaged (-10). 06361_ M6-GXT(j) knocked back. 06361_ Battle Rifle destroyed. 06361_ Critical hit (Burn: +50). 06362_ Overheating: Energy bleed (-19). 06363_ M6-GXT(j) destroyed. 06364_ Overheating: Core damaged (-35). 06365_ Slug Cannon destroyed. 06365_ Released Lrg. Storage Unit. 06365_ Released Mak. Light Armor Plating. 06365_ Released Ovr. Treads. 06367_ OD-SJT(j) heat damages Mak. Salvage Targeting Computer. Map ----- +----------------------------------------------------+ | ?????????????????????????????????????????????????? | | ?????????????????????????????????????????????????? | | ?????????????????????????????????????????????????? | | ?????????????????????????????????????????????????? | | ?????????????????????????############????????????? | | ?????????????????????????"""""""""""#????????????? | | ????????????????????? ???" #"""""""#????????????? | | ????????????????????? ??? # [ " "#????????????? | | ????????????????????? ####+# ="#????????????? | | ????????????????????# #""" "#????????????? | | ????????????????????# #"= ["#????????????? | | #?#################?# #"" """""#????????????? | | [!#!*]#[]# """""""#?# #" "#####????????????? | | ]]# !!#! #" ! "#?#*%#X """""#????????????? | | # #!!#" "#?#!!## = #????????????? | | =#? "#?# %#" #????????????? | | #??? "??# #" #????????????? | | ### ######????# #???# !## ###########????????????? | | ### ###########%#####=%## ##?????????????????????? | | """ """""""""""*"""""==" #?????????????????????? | | !!%! !=%= "#???? ?? "????????????? | | = !% "#???" "" "#???????????? | | ! #?? "#???????????? | | %! [%!##" """"#???????????? | | j !== " "#???????????? | | """""""""""""""""""" j!%@"##" " "" "#???????????? | | """""""""""""""""""""%!!/!"#?? " ""??????????????? | | # ################"=![!|! #???""""??????????????? | | ##????????#""!%=!!"#########?????????????? | | X"?????????#""[!=%!"##"" !??????????????? | | " "" ##????????#"[%!!!! ## ""!#?????????????? | | "" X"#??????###""=!!=% ## ""!#?????????????? | | " ######### #"" [["## !#?????????????? | | "" !%* = *=%* " "#?????????????? | | "" =! !!! =## "" "#?????????????? | | " ######### #""%== ## ""#?????????????? | | "" ""#??????###""=[! ## "!!!#?????????????? | | " "" ##????????#"[ !* ########??????????????? | | X"?????????#"=![ "#?????????????????????? | | ####??????#" "#?????????????????????? | | # ########"#######"" = #############?????????? | | """""""""""" """" """[ =! !## """"""""#????????? | | """""""""""" """" "" = %!%= " """"""#????????? | | =["## " ""#????????? | | "## ""#????????? | | = "## | ""#????????? | | = ## """"""""#????????? | | # #########????????? | | """"" """""""" "" """"" ## #????????????????? | | ##### ########"##!"#""## ## #????????????????? | +----------------------------------------------------+ Best States ------------- Heat Dissipation 25 Energy Generation 15 Energy Capacity 265 Matter Stores 300 Matter Capacity 300 Sight Range 16 Terrain Scan Density 10 Armor Coverage 100 Resistance: KI 20 Resistance: TH 20 Resistance: EX 20 Resistance: EM 20 Resistance: I 20 Resistance: S 20 Resistance: P 20 Evasion (%) 59 Recoil Reduction 2 Offensive Hacking 10 Item Schematics ----------------- None Robot Schematics ------------------ None Fabricated ------------ Nothing Repaired ---------- Nothing Studied --------- None Alien Tech Used ----------------- None Achievements -------------- None Challenges ------------ None Game ------ Seed TrackerAlloyClaw Manual? 0 Play Time 00:39:14 Cumulative 382.0 hours Start 2026.09.05 @ 22:42:02 End 2026.09.05 @ 23:29:39 Sessions 1 Manual Loads 0 Difficulty Adventurer Special Mode None Game No. 117 Rogue 78 Adventurer 39 Explorer 0 Win Type - Total 25 Types 13/2/4/1/1/1/1/1/0/1 Lore% 82 Gallery% 69 Achievement% 64 Wizard Run 0 Options --------- Layout 1 ASCII 0 Keyboard 0 Movement Numpad Keybinds 1 Fullscreen 1 Font 24/Smallcaps Map View 50x35 Zoom Use 0% Tactical HUD 1 Map Filters NONE Filters NONE Steam 1 RUN: 123596aa-189d-4585-9a36-71fc2b18536d